{"text_format":"1","workbook":"xlsx","n_sheets":4,"sheets":["ENTRY","instance","data","parameters"],"not_rendered":{"charts":0,"images":0,"macros":1,"external_links":0,"defined_names":0,"comments":0,"pivot_tables":0},"unopened":[],"bounds":{"document_bytes":16777216,"sheet_cells":100000,"rows_first":2000,"rows_last":500,"rows_between":2000,"halvings":0,"cell_chars":16384,"cell_head_chars":4096},"cells_cut":0,"cells_raw":0,"read":"whole","date_system":"1900"}

{"sheet":"ENTRY","index":0,"n_rows":81,"n_cols":6,"rows_kept":81,"cut":false,"hidden":false,"merged":[]}
["RECEX Data Entry. Test for simplified Balance Sheet. Accountant: Allyson Ugarte. IT expert: Ignacio Boixo. September 2013"]
["IFRS 2013 taxonomy: See www.ifrs.org/XBRL/IFRS-Taxonomy/2013/Pages/IFRS-Taxonomy-2013-files.aspx"]
["Checking Instance. Suggestion: Put the instance in the same folder than the IFRS taxonomy 2013 \"entry points\" and open it (see www.arelle.org )"]
[]
[]
[]
[null,"Data to generate XBRL",null,"Example 1",null,"Example 2"]
[]
["BANK NAME","BANK 1",null,"BANK 1",null,"BANK 2"]
["Competent Authority","www.bankregulator.gov",null,"www.bankregulator.gov",null,"www.bankregulator.gov"]
[]
["Date","2013-07-07",null,"2013-07-07",null,"2013-07-07"]
["Currency","USD",null,"USD",null,"USD"]
[]
["Assets"]
["Non-current assets"]
["Property, plant and equipment",15000,null,15000,null,10000]
["Investment property"]
["Goodwill"]
["Intangible assets other than goodwill",4000,null,4000,null,4000]
["Investments accounted for using equity method"]
["Investments in subsidiaries, joint ventures and associates"]
["Non-current biological assets"]
["Trade and other non-current receivables"]
["Non-current inventories"]
["Deferred tax assets",1000,null,1000,null,1000]
["Current tax assets, non-current",3000,null,3000,null,3000]
["Other non-current financial assets"]
["Other non-current non-financial assets",7000,null,7000,null,14000]
["Non-current non-cash assets pledged as collateral for which transferee has right by contract or custom to sell or repledge collateral"]
["Total non-current assets",{"$f":"SUM(B17:B30)","v":30000},null,{"$f":"SUM(D17:D30)","v":30000},null,{"$f":"SUM(F17:F30)","v":32000}]
["Current assets"]
["Current inventories"]
["Trade and other current receivables",220000,null,220000,null,420000]
["Current tax assets, current"]
["Current biological assets"]
["Other current financial assets",135000,null,135000,null,266000]
["Other current non-financial assets"]
["Cash and cash equivalents",32000,null,32000,null,124000]
["Current non-cash assets pledged as collateral for which transferee has right by contract or custom to sell or repledge collateral"]
["Total current assets other than non-current assets or disposal groups classified as held for sale or as held for distribution to owners"]
["Non-current assets or disposal groups classified as held for sale or as held for distribution to owners"]
["Total current assets",{"$f":"SUM(B33:B42)","v":387000},null,{"$f":"SUM(D33:D42)","v":387000},null,{"$f":"SUM(F33:F42)","v":810000}]
["Total assets",{"$f":"B43+B31","v":417000},null,{"$f":"D43+D31","v":417000},null,{"$f":"F43+F31","v":842000}]
["Equity and liabilities"]
["Equity"]
["Issued capital",95000,null,95000,null,190000]
["Retained earnings",86000,null,86000,null,180000]
["Share premium",10000,null,10000,null,20000]
["Treasury shares",-5000,null,-5000,null,-10000]
["Other equity interest"]
["Other reserves"]
["Total equity attributable to owners of parent"]
["Non-controlling interests"]
["Total equity",{"$f":"SUM(B47:B54)","v":186000},null,{"$f":"SUM(D47:D54)","v":186000},null,{"$f":"SUM(F47:F54)","v":380000}]
["Liabilities"]
["Non-current liabilities [abstract]"]
["Non-current provisions [abstract]"]
["Non-current provisions for employee benefits"]
["Other non-current provisions"]
["Total non-current provisions",12000,null,12000,null,24000]
["Trade and other non-current payables",140000,null,140000,null,120000]
["Deferred tax liabilities"]
["Current tax liabilities, non-current"]
["Other non-current financial liabilities",3000,null,3000,null,6000]
["Other non-current non-financial liabilities"]
["Total non-current liabilities",{"$f":"SUM(B60:B66)","v":155000},null,{"$f":"SUM(D60:D66)","v":155000},null,{"$f":"SUM(F60:F66)","v":150000}]
["Current liabilities [abstract]"]
["Current provisions [abstract]"]
["Current provisions for employee benefits"]
["Other current provisions"]
["Total current provisions"]
["Trade and other current payables"]
["Current tax liabilities, current"]
["Other current financial liabilities",76000,null,76000,null,{"$f":"160000","v":160000}]
["Other current non-financial liabilities",null,null,null,null,152000]
["Total current liabilities other than liabilities included in disposal groups classified as held for sale"]
["Liabilities included in disposal groups classified as held for sale"]
["Total current liabilities",{"$f":"SUM(B70:B78)","v":76000},null,{"$f":"SUM(D70:D78)","v":76000},null,{"$f":"SUM(F70:F78)","v":312000}]
["Total liabilities",{"$f":"B79+B67","v":231000},null,{"$f":"D79+D67","v":231000},null,{"$f":"F79+F67","v":462000}]
["Total equity and liabilities",{"$f":"B80+B55:C55","v":417000},null,{"$f":"D80+D55:E55","v":417000},null,{"$f":"F80+F55:G55","v":842000}]

{"sheet":"instance","index":1,"n_rows":104,"n_cols":24,"rows_kept":104,"cut":false,"hidden":false,"merged":[]}
["","","","","","",null,"","","","","","","","","","","","","","","","",""]
["","","","","","",null,"","","","","","","","","","","","","","","","",""]
["","","","","","",null,"","","","","","","","","","","","","","","","",""]
["","","","","","",null,"","","","","","","","","","","","","","","","",""]
["","","","","","",null,"","","","","","","","","","","","","","","","",""]
["RowID","Footnote","Primary Item","Decimals","UnitRef","Fact","Identifier","IdentifierSchema","PeriodInitDuration","PeriodEndInstant","Dimension","DimensionMember","Dimension","DimensionMember","Dimension","DimensionMember","Dimension","DimensionMember","Dimension","DimensionMember","Dimension","DimensionMember","Dimension","DimensionMember"]
["",null,"ifrs:PropertyPlantAndEquipment","0","UnitRef",15000,"BANK 1","www.bankregulator.gov","","2013-07-07","","","","","","","","","","","","","",""]
["",null,"ifrs:IntangibleAssetsOtherThanGoodwill","0","UnitRef",4000,"BANK 1","www.bankregulator.gov","","2013-07-07","","","","","","","","","","","","","",""]
["",null,"ifrs:DeferredTaxAssets","0","UnitRef",1000,"BANK 1","www.bankregulator.gov","","2013-07-07","","","","","","","","","","","","","",""]
["",null,"ifrs:CurrentTaxAssetsNoncurrent","0","UnitRef",3000,"BANK 1","www.bankregulator.gov","","2013-07-07","","","","","","","","","","","","","",""]
["",null,"ifrs:OtherNoncurrentNonfinancialAssets","0","UnitRef",7000,"BANK 1","www.bankregulator.gov","","2013-07-07","","","","","","","","","","","","","",""]
["",null,"ifrs:NoncurrentAssets","0","UnitRef",30000,"BANK 1","www.bankregulator.gov","","2013-07-07","","","","","","","","","","","","","",""]
["",null,"ifrs:TradeAndOtherCurrentReceivables","0","UnitRef",220000,"BANK 1","www.bankregulator.gov","","2013-07-07","","","","","","","","","","","","","",""]
["",null,"ifrs:OtherCurrentFinancialAssets","0","UnitRef",135000,"BANK 1","www.bankregulator.gov","","2013-07-07","","","","","","","","","","","","","",""]
["",null,"ifrs:CashAndCashEquivalents","0","UnitRef",32000,"BANK 1","www.bankregulator.gov","","2013-07-07","","","","","","","","","","","","","",""]
["",null,"ifrs:CurrentAssets","0","UnitRef",387000,"BANK 1","www.bankregulator.gov","","2013-07-07","","","","","","","","","","","","","",""]
["",null,"ifrs:Assets","0","UnitRef",417000,"BANK 1","www.bankregulator.gov","","2013-07-07","","","","","","","","","","","","","",""]
["",null,"ifrs:IssuedCapital","0","UnitRef",95000,"BANK 1","www.bankregulator.gov","","2013-07-07","","","","","","","","","","","","","",""]
["",null,"ifrs:RetainedEarnings","0","UnitRef",86000,"BANK 1","www.bankregulator.gov","","2013-07-07","","","","","","","","","","","","","",""]
["",null,"ifrs:SharePremium","0","UnitRef",10000,"BANK 1","www.bankregulator.gov","","2013-07-07","","","","","","","","","","","","","",""]
["",null,"ifrs:TreasuryShares","0","UnitRef",-5000,"BANK 1","www.bankregulator.gov","","2013-07-07","","","","","","","","","","","","","",""]
["",null,"ifrs:Equity","0","UnitRef",186000,"BANK 1","www.bankregulator.gov","","2013-07-07","","","","","","","","","","","","","",""]
["",null,"ifrs:NoncurrentProvisions","0","UnitRef",12000,"BANK 1","www.bankregulator.gov","","2013-07-07","","","","","","","","","","","","","",""]
["",null,"ifrs:NoncurrentPayables","0","UnitRef",140000,"BANK 1","www.bankregulator.gov","","2013-07-07","","","","","","","","","","","","","",""]
["",null,"ifrs:OtherNoncurrentFinancialLiabilities","0","UnitRef",3000,"BANK 1","www.bankregulator.gov","","2013-07-07","","","","","","","","","","","","","",""]
["",null,"ifrs:NoncurrentLiabilities","0","UnitRef",155000,"BANK 1","www.bankregulator.gov","","2013-07-07","","","","","","","","","","","","","",""]
["",null,"ifrs:OtherCurrentFinancialLiabilities","0","UnitRef",76000,"BANK 1","www.bankregulator.gov","","2013-07-07","","","","","","","","","","","","","",""]
["",null,"ifrs:CurrentLiabilities","0","UnitRef",76000,"BANK 1","www.bankregulator.gov","","2013-07-07","","","","","","","","","","","","","",""]
["",null,"ifrs:Liabilities","0","UnitRef",231000,"BANK 1","www.bankregulator.gov","","2013-07-07","","","","","","","","","","","","","",""]
["",null,"ifrs:EquityAndLiabilities","0","UnitRef",417000,"BANK 1","www.bankregulator.gov","","2013-07-07","","","","","","","","","","","","","",""]
["","","","","",null,null,"","","","","","","","","","","","","","","","",""]
["","","","","","",null,"","","","","","","","","","","","","","","","",""]
["","","","","","",null,"","","","","","","","","","","","","","","","",""]
["","","","","","",null,"","","","","","","","","","","","","","","","",""]
["","","","","","",null,"","","","","","","","","","","","","","","","",""]
["","","","","","",null,"","","","","","","","","","","","","","","","",""]
["","","","","","",null,"","","","","","","","","","","","","","","","",""]
["","","","","","",null,"","","","","","","","","","","","","","","","",""]
["","","","","","",null,"","","","","","","","","","","","","","","","",""]
["","","","","","",null,"","","","","","","","","","","","","","","","",""]
["","","","","","",null,"","","","","","","","","","","","","","","","",""]
["","","","","","",null,"","","","","","","","","","","","","","","","",""]
["","","","","","",null,"","","","","","","","","","","","","","","","",""]
["","","","","","",null,"","","","","","","","","","","","","","","","",""]
["","","","","","",null,"","","","","","","","","","","","","","","","",""]
["","","","","","",null,"","","","","","","","","","","","","","","","",""]
["","","","","","",null,"","","","","","","","","","","","","","","","",""]
["","","","","","",null,"","","","","","","","","","","","","","","","",""]
["","","","","","",null,"","","","","","","","","","","","","","","","",""]
["","","","","","",null,"","","","","","","","","","","","","","","","",""]
["","","","","","",null,"","","","","","","","","","","","","","","","",""]
["","","","","","",null,"","","","","","","","","","","","","","","","",""]
["","","","","","",null,"","","","","","","","","","","","","","","","",""]
["","","","","","",null,"","","","","","","","","","","","","","","","",""]
["","","","","","",null,"","","","","","","","","","","","","","","","",""]
["","","","","","",null,"","","","","","","","","","","","","","","","",""]
["","","","","","",null,"","","","","","","","","","","","","","","","",""]
["","","","","","",null,"","","","","","","","","","","","","","","","",""]
["","","","","","","","","","","","","","","","","","","","","","","",""]
["","","","","","","","","","","","","","","","","","","","","","","",""]
["","","","","","","","","","","","","","","","","","","","","","","",""]
["","","","","","","","","","","","","","","","","","","","","","","",""]
["","","","","","","","","","","","","","","","","","","","","","","",""]
["","","","","","","","","","","","","","","","","","","","","","","",""]
["","","","","","","","","","","","","","","","","","","","","","","",""]
["","","","","","","","","","","","","","","","","","","","","","","",""]
["","","","","","","","","","","","","","","","","","","","","","","",""]
["","","","","","","","","","","","","","","","","","","","","","","",""]
["","","","","","","","","","","","","","","","","","","","","","","",""]
["","","","","","","","","","","","","","","","","","","","","","","",""]
["","","","","","","","","","","","","","","","","","","","","","","",""]
["","","","","","","","","","","","","","","","","","","","","","","",""]
["","","","","","","","","","","","","","","","","","","","","","","",""]
["","","","","","","","","","","","","","","","","","","","","","","",""]
["","","","","","","","","","","","","","","","","","","","","","","",""]
["","","","","","","","","","","","","","","","","","","","","","","",""]
["","","","","","","","","","","","","","","","","","","","","","","",""]
["","","","","","","","","","","","","","","","","","","","","","","",""]
["","","","","","","","","","","","","","","","","","","","","","","",""]
["","","","","","","","","","","","","","","","","","","","","","","",""]
["","","","","","","","","","","","","","","","","","","","","","","",""]
["","","","","","","","","","","","","","","","","","","","","","","",""]
["","","","","","","","","","","","","","","","","","","","","","","",""]
["","","","","","","","","","","","","","","","","","","","","","","",""]
["","","","","","","","","","","","","","","","","","","","","","","",""]
["","","","","","","","","","","","","","","","","","","","","","","",""]
["","","","","","","","","","","","","","","","","","","","","","","",""]
["","","","","","","","","","","","","","","","","","","","","","","",""]
["","","","","","","","","","","","","","","","","","","","","","","",""]
["","","","","","","","","","","","","","","","","","","","","","","",""]
["","","","","","","","","","","","","","","","","","","","","","","",""]
["","","","","","","","","","","","","","","","","","","","","","","",""]
["","","","","","","","","","","","","","","","","","","","","","","",""]
["","","","","","","","","","","","","","","","","","","","","","","",""]
[]
[]
[]
[]
[]
[]
[]
[]
[]
["","","","","","","","","","","","","","","","","","","","","","","",""]

{"sheet":"data","index":2,"n_rows":76,"n_cols":24,"rows_kept":76,"cut":false,"hidden":false,"merged":[]}
[]
[]
[]
[]
[]
["RowID","Footnote","Primary Item","Decimals","UnitRef","Fact","Identifier","IdentifierSchema","PeriodInitDuration","PeriodEndInstant","Dimension","DimensionMember","Dimension","DimensionMember","Dimension","DimensionMember","Dimension","DimensionMember","Dimension","DimensionMember","Dimension","DimensionMember","Dimension","DimensionMember"]
["/*"]
["/* ","Test for simplified Balance Sheet. Accountant: Allyson Ugarte"]
["/*"]
[{"$f":"IF(F10=0,\"/*\",\"\")","v":"/*"},null,{"$f":"ENTRY!A15","v":"Assets"},null,null,{"$f":"ENTRY!B15","v":0}]
[{"$f":"IF(F11=0,\"/*\",\"\")","v":"/*"},null,{"$f":"ENTRY!A16","v":"Non-current assets"},null,null,{"$f":"ENTRY!B16","v":0}]
["",null,{"$f":"ENTRY!A17","v":"Property, plant and equipment"},null,null,{"$f":"ENTRY!B17","v":15000}]
["/*",null,{"$f":"ENTRY!A18","v":"Investment property"},null,null,{"$f":"ENTRY!B18","v":0}]
["/*",null,{"$f":"ENTRY!A19","v":"Goodwill"},null,null,{"$f":"ENTRY!B19","v":0}]
["",null,{"$f":"ENTRY!A20","v":"Intangible assets other than goodwill"},null,null,{"$f":"ENTRY!B20","v":4000}]
["/*",null,{"$f":"ENTRY!A21","v":"Investments accounted for using equity method"},null,null,{"$f":"ENTRY!B21","v":0}]
["/*",null,{"$f":"ENTRY!A22","v":"Investments in subsidiaries, joint ventures and associates"},null,null,{"$f":"ENTRY!B22","v":0}]
["/*",null,{"$f":"ENTRY!A23","v":"Non-current biological assets"},null,null,{"$f":"ENTRY!B23","v":0}]
["/*",null,{"$f":"ENTRY!A24","v":"Trade and other non-current receivables"},null,null,{"$f":"ENTRY!B24","v":0}]
["/*",null,{"$f":"ENTRY!A25","v":"Non-current inventories"},null,null,{"$f":"ENTRY!B25","v":0}]
["",null,{"$f":"ENTRY!A26","v":"Deferred tax assets"},null,null,{"$f":"ENTRY!B26","v":1000}]
["",null,{"$f":"ENTRY!A27","v":"Current tax assets, non-current"},null,null,{"$f":"ENTRY!B27","v":3000}]
["/*",null,{"$f":"ENTRY!A28","v":"Other non-current financial assets"},null,null,{"$f":"ENTRY!B28","v":0}]
["",null,{"$f":"ENTRY!A29","v":"Other non-current non-financial assets"},null,null,{"$f":"ENTRY!B29","v":7000}]
["/*",null,{"$f":"ENTRY!A30","v":"Non-current non-cash assets pledged as collateral for which transferee has right by contract or custom to sell or repledge collateral"},null,null,{"$f":"ENTRY!B30","v":0}]
["",null,{"$f":"ENTRY!A31","v":"Total non-current assets"},null,null,{"$f":"ENTRY!B31","v":30000}]
["/*",null,{"$f":"ENTRY!A32","v":"Current assets"},null,null,{"$f":"ENTRY!B32","v":0}]
["/*",null,{"$f":"ENTRY!A33","v":"Current inventories"},null,null,{"$f":"ENTRY!B33","v":0}]
["",null,{"$f":"ENTRY!A34","v":"Trade and other current receivables"},null,null,{"$f":"ENTRY!B34","v":220000}]
["/*",null,{"$f":"ENTRY!A35","v":"Current tax assets, current"},null,null,{"$f":"ENTRY!B35","v":0}]
["/*",null,{"$f":"ENTRY!A36","v":"Current biological assets"},null,null,{"$f":"ENTRY!B36","v":0}]
["",null,{"$f":"ENTRY!A37","v":"Other current financial assets"},null,null,{"$f":"ENTRY!B37","v":135000}]
["/*",null,{"$f":"ENTRY!A38","v":"Other current non-financial assets"},null,null,{"$f":"ENTRY!B38","v":0}]
["",null,{"$f":"ENTRY!A39","v":"Cash and cash equivalents"},null,null,{"$f":"ENTRY!B39","v":32000}]
["/*",null,{"$f":"ENTRY!A40","v":"Current non-cash assets pledged as collateral for which transferee has right by contract or custom to sell or repledge collateral"},null,null,{"$f":"ENTRY!B40","v":0}]
["/*",null,{"$f":"ENTRY!A41","v":"Total current assets other than non-current assets or disposal groups classified as held for sale or as held for distribution to owners"},null,null,{"$f":"ENTRY!B41","v":0}]
["/*",null,{"$f":"ENTRY!A42","v":"Non-current assets or disposal groups classified as held for sale or as held for distribution to owners"},null,null,{"$f":"ENTRY!B42","v":0}]
["",null,{"$f":"ENTRY!A43","v":"Total current assets"},null,null,{"$f":"ENTRY!B43","v":387000}]
["",null,{"$f":"ENTRY!A44","v":"Total assets"},null,null,{"$f":"ENTRY!B44","v":417000}]
["/*",null,{"$f":"ENTRY!A45","v":"Equity and liabilities"},null,null,{"$f":"ENTRY!B45","v":0}]
["/*",null,{"$f":"ENTRY!A46","v":"Equity"},null,null,{"$f":"ENTRY!B46","v":0}]
["",null,{"$f":"ENTRY!A47","v":"Issued capital"},null,null,{"$f":"ENTRY!B47","v":95000}]
["",null,{"$f":"ENTRY!A48","v":"Retained earnings"},null,null,{"$f":"ENTRY!B48","v":86000}]
["",null,{"$f":"ENTRY!A49","v":"Share premium"},null,null,{"$f":"ENTRY!B49","v":10000}]
["",null,{"$f":"ENTRY!A50","v":"Treasury shares"},null,null,{"$f":"ENTRY!B50","v":-5000}]
["/*",null,{"$f":"ENTRY!A51","v":"Other equity interest"},null,null,{"$f":"ENTRY!B51","v":0}]
["/*",null,{"$f":"ENTRY!A52","v":"Other reserves"},null,null,{"$f":"ENTRY!B52","v":0}]
["/*",null,{"$f":"ENTRY!A53","v":"Total equity attributable to owners of parent"},null,null,{"$f":"ENTRY!B53","v":0}]
["/*",null,{"$f":"ENTRY!A54","v":"Non-controlling interests"},null,null,{"$f":"ENTRY!B54","v":0}]
["",null,{"$f":"ENTRY!A55","v":"Total equity"},null,null,{"$f":"ENTRY!B55","v":186000}]
["/*",null,{"$f":"ENTRY!A56","v":"Liabilities"},null,null,{"$f":"ENTRY!B56","v":0}]
["/*",null,{"$f":"ENTRY!A57","v":"Non-current liabilities [abstract]"},null,null,{"$f":"ENTRY!B57","v":0}]
["/*",null,{"$f":"ENTRY!A58","v":"Non-current provisions [abstract]"},null,null,{"$f":"ENTRY!B58","v":0}]
["/*",null,{"$f":"ENTRY!A59","v":"Non-current provisions for employee benefits"},null,null,{"$f":"ENTRY!B59","v":0}]
["/*",null,{"$f":"ENTRY!A60","v":"Other non-current provisions"},null,null,{"$f":"ENTRY!B60","v":0}]
["",null,{"$f":"ENTRY!A61","v":"Total non-current provisions"},null,null,{"$f":"ENTRY!B61","v":12000}]
["",null,{"$f":"ENTRY!A62","v":"Trade and other non-current payables"},null,null,{"$f":"ENTRY!B62","v":140000}]
["/*",null,{"$f":"ENTRY!A63","v":"Deferred tax liabilities"},null,null,{"$f":"ENTRY!B63","v":0}]
["/*",null,{"$f":"ENTRY!A64","v":"Current tax liabilities, non-current"},null,null,{"$f":"ENTRY!B64","v":0}]
["",null,{"$f":"ENTRY!A65","v":"Other non-current financial liabilities"},null,null,{"$f":"ENTRY!B65","v":3000}]
["/*",null,{"$f":"ENTRY!A66","v":"Other non-current non-financial liabilities"},null,null,{"$f":"ENTRY!B66","v":0}]
["",null,{"$f":"ENTRY!A67","v":"Total non-current liabilities"},null,null,{"$f":"ENTRY!B67","v":155000}]
["/*",null,{"$f":"ENTRY!A68","v":"Current liabilities [abstract]"},null,null,{"$f":"ENTRY!B68","v":0}]
["/*",null,{"$f":"ENTRY!A69","v":"Current provisions [abstract]"},null,null,{"$f":"ENTRY!B69","v":0}]
["/*",null,{"$f":"ENTRY!A70","v":"Current provisions for employee benefits"},null,null,{"$f":"ENTRY!B70","v":0}]
["/*",null,{"$f":"ENTRY!A71","v":"Other current provisions"},null,null,{"$f":"ENTRY!B71","v":0}]
["/*",null,{"$f":"ENTRY!A72","v":"Total current provisions"},null,null,{"$f":"ENTRY!B72","v":0}]
["/*",null,{"$f":"ENTRY!A73","v":"Trade and other current payables"},null,null,{"$f":"ENTRY!B73","v":0}]
["/*",null,{"$f":"ENTRY!A74","v":"Current tax liabilities, current"},null,null,{"$f":"ENTRY!B74","v":0}]
["",null,{"$f":"ENTRY!A75","v":"Other current financial liabilities"},null,null,{"$f":"ENTRY!B75","v":76000}]
["/*",null,{"$f":"ENTRY!A76","v":"Other current non-financial liabilities"},null,null,{"$f":"ENTRY!B76","v":0}]
["/*",null,{"$f":"ENTRY!A77","v":"Total current liabilities other than liabilities included in disposal groups classified as held for sale"},null,null,{"$f":"ENTRY!B77","v":0}]
["/*",null,{"$f":"ENTRY!A78","v":"Liabilities included in disposal groups classified as held for sale"},null,null,{"$f":"ENTRY!B78","v":0}]
["",null,{"$f":"ENTRY!A79","v":"Total current liabilities"},null,null,{"$f":"ENTRY!B79","v":76000}]
[{"$f":"IF(F75=0,\"/*\",\"\")","v":""},null,{"$f":"ENTRY!A80","v":"Total liabilities"},null,null,{"$f":"ENTRY!B80","v":231000}]
["",null,{"$f":"ENTRY!A81","v":"Total equity and liabilities"},null,null,{"$f":"ENTRY!B81","v":417000}]

{"sheet":"parameters","index":3,"n_rows":67,"n_cols":24,"rows_kept":67,"cut":false,"hidden":false,"merged":[]}
["RowID","Footnote","Primary Item","Decimals","UnitRef","Fact","Identifier","IdentifierSchema","PeriodInitDuration","PeriodEndInstant","Dimension","DimensionMember","Dimension","DimensionMember","Dimension","DimensionMember","Dimension","DimensionMember","Dimension","DimensionMember","Dimension","DimensionMember","Dimension","DimensionMember"]
["/* "]
["/* "]
["/* ","Test for simplified Balance Sheet. Accountant: Allyson Ugarte"]
["/* "]
["/**OutputHeader","<?xml version=\"1.0\" encoding=\"UTF-8\"?>\n<xbrli:xbrl xmlns:xsi=\"http://www.w3.org/2001/XMLSchema-instance\" xsi:schemaLocation=\"http://xbrl.org/2006/xbrldi http://www.xbrl.org/2006/xbrldi-2006.xsd\" xmlns:full_entry_point=\"http://xbrl.ifrs.org/taxonomy/2013-03-28/ifrs/full_entry_point\" xmlns:rol_ifric_5_2013-03-28=\"http://xbrl.ifrs.org/role/ifrs/rol_ifric_5_2013-03-28\" xmlns:xbrldi=\"http://xbrl.org/2006/xbrldi\" xmlns:rol_ias_12_2013-03-28=\"http://xbrl.ifrs.org/role/ifrs/rol_ias_12_2013-03-28\" xmlns:rol_ias_40_2013-03-28=\"http://xbrl.ifrs.org/role/ifrs/rol_ias_40_2013-03-28\" xmlns:rol_ifrs_2_2013-03-28=\"http://xbrl.ifrs.org/role/ifrs/rol_ifrs_2_2013-03-28\" xmlns:rol_dim=\"http://xbrl.ifrs.org/role/ifrs/dimensions\" xmlns:rol_ias_37_2013-03-28=\"http://xbrl.ifrs.org/role/ifrs/rol_ias_37_2013-03-28\" xmlns:rol_ifrs_4_2013-03-28=\"http://xbrl.ifrs.org/role/ifrs/rol_ifrs_4_2013-03-28\" xmlns:reference=\"http://xbrl.org/2008/reference\" xmlns:iso4217=\"http://www.xbrl.org/2003/iso4217\" xmlns:rol_ias_8_2013-03-28=\"http://xbrl.ifrs.org/role/ifrs/rol_ias_8_2013-03-28\" xmlns:rol_ias_21_2013-03-28=\"http://xbrl.ifrs.org/role/ifrs/rol_ias_21_2013-03-28\" xmlns:rol_ias_16_2013-03-28=\"http://xbrl.ifrs.org/role/ifrs/rol_ias_16_2013-03-28\" xmlns:rol_ifrs_6_2013-03-28=\"http://xbrl.ifrs.org/role/ifrs/rol_ifrs_6_2013-03-28\" xmlns:rol_sic_27_2013-03-28=\"http://xbrl.ifrs.org/role/ifrs/rol_sic_27_2013-03-28\" xmlns:rol_ias_23_2013-03-28=\"http://xbrl.ifrs.org/role/ifrs/rol_ias_23_2013-03-28\" xmlns:rol_ias_18_2013-03-28=\"http://xbrl.ifrs.org/role/ifrs/rol_ias_18_2013-03-28\" xmlns:num=\"http://www.xbrl.org/dtr/type/numeric\" xmlns:xlink=\"http://www.w3.org/1999/xlink\" xmlns:rol_ifrs_8_2013-03-28=\"http://xbrl.ifrs.org/role/ifrs/rol_ifrs_8_2013-03-28\" xmlns:rol_sic_29_2013-03-28=\"http://xbrl.ifrs.org/role/ifrs/rol_sic_29_2013-03-28\" xmlns:rol_ps_mc_2013-03-28=\"http://xbrl.ifrs.org/role/ifrs/rol_ps_mc_2013-03-28\" xmlns:gen=\"http://xbrl.org/2008/generic\" xmlns:rol_ifrs_12_2013-03-28=\"http://xbrl.ifrs.org/role/ifrs/rol_ifrs_12_2013-03-28\" xmlns:ref=\"http://www.xbrl.org/2006/ref\" xmlns:rol_ifric_2_2013-03-28=\"http://xbrl.ifrs.org/role/ifrs/rol_ifric_2_2013-03-28\" xmlns:rol_ias_1_2013-03-28=\"http://xbrl.ifrs.org/role/ifrs/rol_ias_1_2013-03-28\" xmlns:label=\"http://xbrl.org/2008/label\" xmlns:rol_ias_27_2013-03-28=\"http://xbrl.ifrs.org/role/ifrs/rol_ias_27_2013-03-28\" xmlns:rol_ias_34_2013-03-28=\"http://xbrl.ifrs.org/role/ifrs/rol_ias_34_2013-03-28\" xmlns:nonnum=\"http://www.xbrl.org/dtr/type/non-numeric\" xmlns:rol_ias_11_2013-03-28=\"http://xbrl.ifrs.org/role/ifrs/rol_ias_11_2013-03-28\" xmlns:rol_ias_29_2013-03-28=\"http://xbrl.ifrs.org/role/ifrs/rol_ias_29_2013-03-28\" xmlns:link=\"http://www.xbrl.org/2003/linkbase\" xmlns:rol_ifrs_1_2013-03-28=\"http://xbrl.ifrs.org/role/ifrs/rol_ifrs_1_2013-03-28\" xmlns:rol_ias_41_2013-03-28=\"http://xbrl.ifrs.org/role/ifrs/rol_ias_41_2013-03-28\" xmlns:rol_ias_36_2013-03-28=\"http://xbrl.ifrs.org/role/ifrs/rol_ias_36_2013-03-28\" xmlns:rol_ifrs_3_2013-03-28=\"http://xbrl.ifrs.org/role/ifrs/rol_ifrs_3_2013-03-28\" xmlns:rol_ias_7_2013-03-28=\"http://xbrl.ifrs.org/role/ifrs/rol_ias_7_2013-03-28\" xmlns:rol_ias_20_2013-03-28=\"http://xbrl.ifrs.org/role/ifrs/rol_ias_20_2013-03-28\" xmlns:ifrs=\"http://xbrl.ifrs.org/taxonomy/2013-03-28/ifrs\" xmlns:rol_ias_38_2013-03-28=\"http://xbrl.ifrs.org/role/ifrs/rol_ias_38_2013-03-28\" xmlns:rol_ifrs_5_2013-03-28=\"http://xbrl.ifrs.org/role/ifrs/rol_ifrs_5_2013-03-28\" xmlns:xbrli=\"http://www.xbrl.org/2003/instance\" xmlns:rol_ias_17_2013-03-28=\"http://xbrl.ifrs.org/role/ifrs/rol_ias_17_2013-03-28\" xmlns:rol_ifrs_7_2013-03-28=\"http://xbrl.ifrs.org/role/ifrs/rol_ifrs_7_2013-03-28\" xmlns:rol_ias_19_2013-03-28=\"http://xbrl.ifrs.org/role/ifrs/rol_ias_19_2013-03-28\" xmlns:xbrldt=\"http://xbrl.org/2005/xbrldt\" xmlns:rol_ias_24_2013-03-28=\"http://xbrl.ifrs.org/role/ifrs/rol_ias_24_2013-03-28\" xmlns:net=\"http://www.xbrl.org/2009/role/net\" xmlns:negated=\"http://www.xbrl.org/2009/role/negated\" xmlns:reference_2=\"http://www.xbrl.org/2009/role/reference\" xmlns:rol_ias_26_2013-03-28=\"http://xbrl.ifrs.org/role/ifrs/rol_ias_26_2013-03-28\" xmlns:rol_ifrs_13_2013-03-28=\"http://xbrl.ifrs.org/role/ifrs/rol_ifrs_13_2013-03-28\" xmlns:xl=\"http://www.xbrl.org/2003/XLink\" xmlns:rol_ias_10_2013-03-28=\"http://xbrl.ifrs.org/role/ifrs/rol_ias_10_2013-03-28\" xmlns:rol_ias_2_2013-03-28=\"http://xbrl.ifrs.org/role/ifrs/rol_ias_2_2013-03-28\" xmlns:rol_ias_33_2013-03-28=\"http://xbrl.ifrs.org/role/ifrs/rol_ias_33_2013-03-28\">\n  <link:schemaRef xlink:type=\"simple\" xlink:href=\"full_entry_point_2013-03-28.xsd\"/>"]
["/**OutputMiddle",{"$f":"CONCATENATE(C7,D7,E7)","v":"<xbrli:unit id=\"UnitRef\">\n<xbrli:measure>iso4217:USD</xbrli:measure>\n</xbrli:unit>"},"<xbrli:unit id=\"UnitRef\">\n<xbrli:measure>iso4217:",{"$f":"ENTRY!B13","v":"USD"},"</xbrli:measure>\n</xbrli:unit>"]
["/**OutputTail","</xbrli:xbrl>"]
["/* "]
["/**Replace","Entity",null,0,"UnitRef",null,{"$f":"ENTRY!B9","v":"BANK 1"},{"$f":"ENTRY!B10","v":"www.bankregulator.gov"},null,{"$f":"ENTRY!B12","v":"2013-07-07"}]
["/* "]
["/**Replace","Property, plant and equipment","ifrs:PropertyPlantAndEquipment",null,null,null,"Entity"]
["/**Replace","Investment property","ifrs:InvestmentProperty",null,null,null,"Entity"]
["/**Replace","Goodwill","ifrs:Goodwill",null,null,null,"Entity"]
["/**Replace","Intangible assets other than goodwill","ifrs:IntangibleAssetsOtherThanGoodwill",null,null,null,"Entity"]
["/**Replace","Investments accounted for using equity method","ifrs:InvestmentAccountedForUsingEquityMethod",null,null,null,"Entity"]
["/**Replace","Investments in subsidiaries, joint ventures and associates","ifrs:InvestmentsInSubsidiariesJointVenturesAndAssociates",null,null,null,"Entity"]
["/**Replace","Non-current biological assets","ifrs:NoncurrentBiologicalAssets",null,null,null,"Entity"]
["/**Replace","Trade and other non-current receivables","ifrs:NoncurrentReceivables",null,null,null,"Entity"]
["/**Replace","Non-current inventories","ifrs:NoncurrentInventories",null,null,null,"Entity"]
["/**Replace","Deferred tax assets","ifrs:DeferredTaxAssets",null,null,null,"Entity"]
["/**Replace","Current tax assets, non-current","ifrs:CurrentTaxAssetsNoncurrent",null,null,null,"Entity"]
["/**Replace","Other non-current financial assets","ifrs:OtherNoncurrentNonfinancialAssets",null,null,null,"Entity"]
["/**Replace","Other non-current non-financial assets","ifrs:OtherNoncurrentNonfinancialAssets",null,null,null,"Entity"]
["/**Replace","Non-current non-cash assets pledged as collateral for which transferee has right by contract or custom to sell or repledge collateral","ifrs:NoncurrentNoncashAssetsPledgedAsCollateralForWhichTransfereeHasRightByContractOrCustomToSellOrRepledgeCollateral",null,null,null,"Entity"]
["/**Replace","Total non-current assets","ifrs:NoncurrentAssets",null,null,null,"Entity"]
["/**Replace","Current inventories","ifrs:Inventories",null,null,null,"Entity"]
["/**Replace","Trade and other current receivables","ifrs:TradeAndOtherCurrentReceivables",null,null,null,"Entity"]
["/**Replace","Current tax assets, current","ifrs:CurrentTaxAssetsCurrent",null,null,null,"Entity"]
["/**Replace","Current biological assets","ifrs:CurrentBiologicalAssets",null,null,null,"Entity"]
["/**Replace","Other current financial assets","ifrs:OtherCurrentFinancialAssets",null,null,null,"Entity"]
["/**Replace","Other current non-financial assets","ifrs:OtherCurrentNonfinancialAssets",null,null,null,"Entity"]
["/**Replace","Cash and cash equivalents","ifrs:CashAndCashEquivalents",null,null,null,"Entity"]
["/**Replace","Current non-cash assets pledged as collateral for which transferee has right by contract or custom to sell or repledge collateral","ifrs:CurrentNoncashAssetsPledgedAsCollateralForWhichTransfereeHasRightByContractOrCustomToSellOrRepledgeCollateral",null,null,null,"Entity"]
["/**Replace","Total current assets other than non-current assets or disposal groups classified as held for sale or as held for distribution to owners","ifrs:CurrentAssetsOtherThanAssetsOrDisposalGroupsClassifiedAsHeldForSaleOrAsHeldForDistributionToOwners",null,null,null,"Entity"]
["/**Replace","Non-current assets or disposal groups classified as held for sale or as held for distribution to owners","ifrs:NoncurrentAssetsOrDisposalGroupsClassifiedAsHeldForSaleOrAsHeldForDistributionToOwners",null,null,null,"Entity"]
["/**Replace","Total current assets","ifrs:CurrentAssets",null,null,null,"Entity"]
["/**Replace","Total assets","ifrs:Assets",null,null,null,"Entity"]
["/**Replace","Issued capital","ifrs:IssuedCapital",null,null,null,"Entity"]
["/**Replace","Retained earnings","ifrs:RetainedEarnings",null,null,null,"Entity"]
["/**Replace","Share premium","ifrs:SharePremium",null,null,null,"Entity"]
["/**Replace","Treasury shares","ifrs:TreasuryShares",null,null,null,"Entity"]
["/**Replace","Other equity interest","ifrs:OtherEquityInterest",null,null,null,"Entity"]
["/**Replace","Other reserves","ifrs:OtherReserves",null,null,null,"Entity"]
["/**Replace","Non-controlling interests","ifrs:NoncontrollingInterests",null,null,null,"Entity"]
["/**Replace","Total equity","ifrs:Equity",null,null,null,"Entity"]
["/**Replace","Non-current provisions for employee benefits","ifrs:NoncurrentProvisionsForEmployeeBenefits",null,null,null,"Entity"]
["/**Replace","Other non-current provisions","ifrs:OtherLongtermProvisions",null,null,null,"Entity"]
["/**Replace","Total non-current provisions","ifrs:NoncurrentProvisions",null,null,null,"Entity"]
["/**Replace","Trade and other non-current payables","ifrs:NoncurrentPayables",null,null,null,"Entity"]
["/**Replace","Deferred tax liabilities","ifrs:DeferredTaxLiabilities",null,null,null,"Entity"]
["/**Replace","Current tax liabilities, non-current","ifrs:CurrentTaxLiabilitiesNoncurrent",null,null,null,"Entity"]
["/**Replace","Other non-current financial liabilities","ifrs:OtherNoncurrentFinancialLiabilities",null,null,null,"Entity"]
["/**Replace","Other non-current non-financial liabilities","ifrs:OtherNoncurrentNonfinancialLiabilities",null,null,null,"Entity"]
["/**Replace","Total non-current liabilities","ifrs:NoncurrentLiabilities",null,null,null,"Entity"]
["/**Replace","Current provisions for employee benefits","ifrs:CurrentProvisionsForEmployeeBenefits",null,null,null,"Entity"]
["/**Replace","Other current provisions","ifrs:OtherShorttermProvisions",null,null,null,"Entity"]
["/**Replace","Total current provisions","ifrs:CurrentProvisions",null,null,null,"Entity"]
["/**Replace","Trade and other current payables","ifrs:TradeAndOtherCurrentPayables",null,null,null,"Entity"]
["/**Replace","Current tax liabilities, current","ifrs:CurrentTaxLiabilitiesCurrent",null,null,null,"Entity"]
["/**Replace","Other current financial liabilities","ifrs:OtherCurrentFinancialLiabilities",null,null,null,"Entity"]
["/**Replace","Other current non-financial liabilities","ifrs:OtherCurrentNonfinancialLiabilities",null,null,null,"Entity"]
["/**Replace","Total current liabilities other than liabilities included in disposal groups classified as held for sale","ifrs:CurrentLiabilitiesOtherThanLiabilitiesIncludedInDisposalGroupsClassifiedAsHeldForSale",null,null,null,"Entity"]
["/**Replace","Liabilities included in disposal groups classified as held for sale","ifrs:LiabilitiesIncludedInDisposalGroupsClassifiedAsHeldForSal",null,null,null,"Entity"]
["/**Replace","Total current liabilities","ifrs:CurrentLiabilities",null,null,null,"Entity"]
["/**Replace","Total liabilities","ifrs:Liabilities",null,null,null,"Entity"]
["/**Replace","Total equity and liabilities","ifrs:EquityAndLiabilities",null,null,null,"Entity"]